bitfinex/quotes_ETHUSD_20250801
["timestamp","ask_amount","ask_price","bid_price","bid_amount"]
[1754057820222,2.75535365,3629.3,3628.1,2.7562636]
[1754057820431,2.75535365,3629.3,3628.7,2.75578708]
[1754057820584,2.3619,3629.4,3628.8,2.75566071]
[1754057820585,4.771,3629.2,3628.8,2.75566071]
[1754057820783,7.52645667,3629.2,3628.6,2.75585458]
[1754057821024,0.4314,3629.1,3628.2,1.8701]
[1754057821210,6.7015,3629.2,3628.2,1.8701]
[1754057821211,2.75528152,3629.4,3628.7,2.75573722]
[1754057821426,4.77,3629.3,3628.8,0.02755731]
[1754057821627,4.77,3629.2,3628.6,1.8701]
[1754057821850,4.77,3629.3,3629.2,2.75540822]
[1754057822148,5.11694522,3629.8,3628.6,1.8701]
[1754057822149,2.3619,3629.8,3628.6,1.8701]
[1754057822376,4.769,3629.7,3629.5,2.75519923]
[1754057822525,4.769,3629.7,3628.6,1.8701]
[1754057822726,7.95550135,3629.7,3628.6,1.8701]
[1754057823026,2.39633905,3629.6,3628.2,1.8701]
[1754057823253,0.1376,3629.1,3628.7,2.75574314]
[1754057823558,0.1376,3629.1,3628.6,0.1376]
[1754057823765,0.4314,3629.8,3629.2,2.7553795]
[1754057823927,4.768,3629.5,3629.0,0.1376]
[1754057824126,4.768,3629.5,3628.3,1.8701]
[1754057824127,0.1376,3629.3,3628.8,0.1376]
[1754057824367,0.1376,3629.3,3629.1,2.75548769]
[1754057824534,4.767,3629.4,3629.1,2.75545285]
[1754057824735,1.9305,3629.9,3629.1,2.75545285]
[1754057824736,2.3629,3630.4,3629.2,1.8701]
[1754057824937,7.66045113,3630.0,3629.4,0.1376]
[1754057825151,4.9056,3630.0,3629.4,0.1376]
[1754057825341,7.1348,3630.0,3629.4,0.1376]
[1754057825552,5.3334,3630.0,3629.4,0.1376]
[1754057825874,5.3334,3630.0,3629.4,2.89282458]
[1754057826167,4.767,3629.9,3629.4,2.89284743]
[1754057826662,0.1386,3630.0,3629.4,0.1376]
[1754057826965,4.766,3629.9,3629.4,0.1376]
[1754057827175,4.766,3629.9,3424.8,5.41397597]
[1754057827176,2.2292,3629.8,3628.4,5.3185]
[1754057827379,2.89272935,3629.6,3629.1,0.1376]
[1754057827544,2.75527635,3629.4,3628.4,1.8484]
[1754057827745,4.764,3629.6,3628.5,2.34605959]
[1754057827942,4.764,3629.6,3629.3,2.89293199]
[1754057828235,0.1376,3629.8,3629.3,0.1376]
[1754057828469,4.764,3629.7,3629.5,0.1376]
[1754057828857,3.21736358,3629.6,3628.5,5.07443883]
[1754057829029,0.94949636,3629.5,3629.0,0.1376]
[1754057829367,0.94949636,3629.5,3627.8,7.51942398]
[1754057829368,15.40572242,3629.3,3628.1,1.8484]
[1754057829543,15.40572242,3629.3,3628.5,0.1376]
[1754057829544,0.1376,3629.0,3628.5,0.1376]
[1754057829746,5.1898,3628.9,3628.6,2.75587141]
[1754057829943,4.762,3629.1,3628.7,2.89334921]
[1754057830144,4.762,3629.3,3628.8,1.8484]
[1754057830342,4.762,3629.3,3627.9,0.2043547]
[1754057830343,6.9912,3629.3,3628.9,0.1376]
[1754057830569,0.4278,3629.2,3628.9,0.1376]
[1754057830871,0.4278,3629.2,3628.0,3.002]
[1754057830872,0.1376,3629.0,3628.5,0.1376]
[1754057831186,0.1376,3628.5,3628.0,0.002]
[1754057831334,4.761,3628.4,3628.0,0.002]
[1754057831882,4.761,3628.4,3628.3,2.75611167]
[1754057832029,6.9892,3629.6,3629.0,2.75556999]
[1754057832233,6.9892,3629.6,3628.9,2.75563978]
[1754057832465,2.75502208,3629.8,3629.1,2.7554529]
[1754057832778,4.76,3629.7,3629.1,2.75544286]
[1754057832933,2.26363905,3629.6,3628.0,1.8504]
[1754057833128,15.40572242,3629.1,3628.0,0.002]
[1754057833333,2.75571867,3628.9,3628.0,0.002]
[1754057833565,2.75550238,3629.2,3628.0,0.002]
[1754057833730,2.2292,3629.4,3628.9,2.7555891]
[1754057833937,2.2292,3629.8,3629.0,2.75555015]
[1754057834133,2.75517432,3629.6,3628.8,2.75568444]
[1754057834383,2.2292,3629.5,3628.1,4.8484]
[1754057834567,2.75527635,3629.4,3628.2,2.75618764]
[1754057834879,2.2292,3629.3,3628.1,1.8484]
[1754057835089,2.75578337,3628.8,3628.1,2.75625692]
[1754057835388,4.758,3628.7,3628.0,0.002]
[1754057835585,7.51383457,3628.7,3628.0,0.002]
[1754057835734,7.51383457,3628.7,3628.0,2.75831016]
[1754057835934,7.51383457,3628.7,3628.0,0.002]
[1754057835935,5.60984662,3628.7,3628.0,0.002]
[1754057836184,2.75604847,3628.4,3628.0,0.002]
[1754057836388,2.2292,3628.6,3628.0,0.002]
[1754057836586,2.7559209,3628.6,3628.0,0.002]
[1754057836730,4.98537903,3628.3,3628.0,0.002]
[1754057836931,4.757,3628.2,3628.0,0.002]
[1754057837592,0.4278,3628.1,3628.0,0.002]
[1754057837753,2.75656752,3627.7,3627.6,0.002]
[1754057837954,22.91828994,3627.7,3627.6,0.002]
[1754057838154,0.55,3627.6,3625.7,1.8484]
[1754057838337,15.40572242,3626.9,3624.9,2.3185]
[1754057838537,15.40572242,3626.2,3625.0,2.75860383]
[1754057838732,2.75824816,3625.5,3624.5,0.4701]
[1754057838937,4.78947895,3625.4,3624.5,1.8484]
[1754057839242,4.78947895,3625.4,3624.2,2.75915993]
[1754057839243,4.7894799,3625.3,3624.2,2.75916799]
[1754057839456,4.7894799,3625.3,3624.1,1.8484]
[1754057839457,2.7587977,3624.8,3624.1,1.8484]
[1754057839668,4.754,3624.7,3623.7,0.002]
[1754057839871,4.754,3624.6,3624.4,2.75902138]
[1754057840181,4.754,3624.6,3623.7,0.002]
[1754057840182,2.75953419,3623.8,3623.7,0.002]
[1754057840339,4.755,3623.8,3623.7,0.002]
[1754057840550,9.74373419,3623.8,3623.7,0.002]
[1754057841178,6.9842,3623.8,3623.7,0.002]
[1754057841355,9.74373419,3623.8,3623.7,0.002]
[1754057841540,0.4278,3623.8,3623.7,0.002]
[1754057841746,9.70803276,3623.8,3622.3,1.8484]
[1754057841941,0.4278,3623.8,3622.4,0.497706]
[1754057842175,0.1376,3623.4,3623.3,2.75991499]
[1754057842377,0.1376,3623.7,3623.6,2.75968649]
[1754057842552,4.8906,3623.7,3623.3,5.07838719]
[1754057842760,4.753,3623.7,3623.6,2.75968649]
[1754057843049,4.753,3624.0,3623.9,2.75945804]
[1754057843265,4.753,3624.0,3623.6,2.4561]
[1754057843486,4.753,3624.0,3623.6,1.986]
[1754057843777,0.03449322,3623.9,3623.6,0.1376]
[1754057843941,4.753,3624.0,3623.1,1.8484]
[1754057843942,7.51239799,3624.0,3623.1,2.76002824]
[1754057844141,0.1376,3623.4,3623.2,2.75998925]
[1754057844389,4.8916,3623.4,3623.3,2.75991499]
[1754057844543,4.753,3623.7,3623.6,2.75968649]
[1754057844756,4.8906,3624.0,3623.9,2.75945804]
[1754057844956,0.1376,3624.0,3623.9,2.75945804]
[1754057845173,4.753,3624.0,3623.9,2.75945804]
[1754057845384,0.1376,3624.1,3624.0,2.75938189]
[1754057845556,0.4278,3625.0,3623.9,2.75945804]
[1754057845764,0.1376,3624.6,3624.4,2.75900523]
[1754057845958,0.1376,3624.6,3624.5,2.75900124]
[1754057846186,0.1376,3624.8,3624.3,2.75915349]
[1754057846385,4.753,3624.7,3624.6,2.75892512]
[1754057846602,4.753,3624.7,3624.3,0.1376]
[1754057846603,5.19326214,3624.7,3624.3,0.1376]
[1754057846801,5.19326214,3624.7,3621.0,0.25897757]
[1754057846802,15.40572242,3624.5,3623.0,1.8484]
[1754057846959,4.753,3624.4,3623.0,1.8484]
[1754057847156,4.753,3624.3,3623.1,0.4701]
[1754057847409,0.03449037,3624.2,3623.2,1.8484]
[1754057847706,7.9399664,3624.3,3623.4,2.75978171]
[1754057848005,2.2292,3624.7,3623.3,1.8484]
[1754057848161,4.752,3624.6,3623.3,1.8484]
[1754057848363,2.75942396,3624.0,3623.3,2.75986319]
[1754057848559,2.75955318,3623.8,3622.9,1.8484]
[1754057848760,2.75973254,3623.6,3622.6,2.76044446]
[1754057848961,7.51146117,3623.9,3623.2,2.75996635]
[1754057849174,4.752,3623.9,3622.6,2.76040158]
[1754057849371,0.69812,3623.8,3622.8,2.7602959]
[1754057849571,0.69812,3623.8,3623.4,2.75978777]
[1754057849800,1.12592,3623.8,3622.9,2.76021725]
[1754057850001,2.92732,3623.8,3623.3,2.75989864]
[1754057850201,4.98882071,3623.7,3622.7,2.76037209]
[1754057850401,2.997132,3623.7,3622.4,0.4701]
[1754057850692,4.751,3623.6,3622.6,1.8484]
[1754057850897,16.10384242,3624.5,3622.7,0.4701]
[1754057851063,4.75,3624.4,3622.9,2.76021971]
[1754057851264,4.75,3624.4,3624.2,2.75920295]
[1754057851464,4.75,3624.3,3624.2,2.75922962]
[1754057851695,22.45552242,3625.2,3623.7,1.8484]
[1754057851881,7.17569224,3625.1,3624.6,2.75885448]
[1754057852081,0.4278,3625.0,3624.5,2.75898422]
[1754057852287,2.2292,3625.0,3624.3,2.7591384]
[1754057852499,4.75,3624.9,3624.1,1.8484]
[1754057852700,4.75,3624.8,3624.1,1.8484]
[1754057852910,4.75,3624.8,3624.7,2.758849]
[1754057853086,4.75,3624.8,3624.2,2.75922962]
[1754057853279,4.75,3624.8,3624.7,2.758849]
[1754057854415,6.628,3625.9,3625.6,2.75808858]
[1754057854574,15.40572242,3626.6,3625.2,0.4701]
[1754057854575,4.749,3626.0,3625.2,0.4701]
[1754057854773,0.4278,3626.6,3625.1,1.8484]
[1754057854774,4.749,3625.9,3625.1,1.8484]
[1754057854974,4.748,3625.8,3625.2,2.75846849]
[1754057855186,4.748,3625.7,3625.6,2.75816416]
[1754057855388,4.748,3625.7,3625.6,4.69926416]
[1754057855587,4.748,3626.0,3625.7,2.75808809]
[1754057855808,4.748,3626.0,3625.9,2.75793596]
[1754057856211,0.4346,3626.8,3625.6,1.9411]
[1754057856398,4.747,3626.7,3626.4,2.75751163]
[1754057856685,0.1376,3626.5,3626.2,2.75764229]
[1754057856979,0.1376,3626.2,3625.8,2.75801202]
[1754057857179,0.1376,3626.2,3626.1,2.75778384]
[1754057857514,2.3157,3627.1,3626.6,2.75734303]
[1754057857715,9.628,3627.6,3626.1,0.1376]
[1754057857716,0.1376,3626.7,3626.1,0.1376]
[1754057857915,4.746,3626.6,3626.5,2.75747966]
[1754057858119,7.0617,3626.6,3626.1,2.75772332]
[1754057858424,0.1376,3626.4,3625.9,2.7579348]
[1754057858720,0.4346,3626.3,3625.3,0.1376]
[1754057858917,0.4346,3626.3,3623.6,0.55]
[1754057858918,0.1376,3625.8,3624.6,1.9411]
[1754057859079,0.1376,3625.4,3624.8,0.1376]
[1754057859279,4.745,3625.5,3625.3,2.7583924]
[1754057859528,4.745,3625.5,3625.2,0.1376]
[1754057860272,4.817078,3625.5,3625.0,0.1376]
[1754057860419,4.7826,3625.5,3625.0,0.1376]
[1754057860770,18.44135242,3626.5,3625.4,2.75831632]
[1754057860914,4.744,3626.4,3625.5,4.69927206]
[1754057861112,0.1376,3626.2,3625.7,2.89565316]
[1754057861315,0.1376,3626.2,3625.7,0.1376]
[1754057861649,0.1376,3626.2,3626.0,2.75784725]
[1754057861847,0.1376,3626.2,3625.7,2.0787]
[1754057862046,4.743,3626.1,3626.0,4.6989599]
[1754057862356,4.743,3626.1,3625.7,0.1376]
[1754057862561,4.743,3626.1,3625.7,2.89567499]
[1754057862785,6.627,3627.8,3626.0,3.0]
[1754057862915,0.4346,3628.1,3626.4,2.7575557]
[1754057863226,0.1376,3627.9,3627.8,2.75649153]
[1754057863426,4.8796,3627.9,3627.8,2.75649153]
[1754057863658,0.1376,3627.9,3627.8,2.75649153]
[1754057863865,0.1376,3627.9,3627.3,1.9411]
[1754057863866,0.001,3628.2,3628.1,2.7562636]
[1754057864075,0.001,3628.2,3627.2,0.4528]
[1754057864076,0.1376,3628.1,3628.0,2.75633958]
[1754057864229,0.1376,3628.1,3627.6,0.1376]
[1754057864643,0.1376,3628.1,3628.0,2.75633958]
[1754057864849,0.001,3628.2,3627.7,1.9411]
[1754057865051,0.001,3628.2,3628.1,2.7562636]
[1754057865254,0.001,3628.2,3627.9,2.75636523]
[1754057865255,4.741,3628.2,3628.0,2.75633958]
[1754057865549,4.741,3628.2,3627.9,0.1376]
[1754057866119,4.741,3628.2,3627.8,0.1376]
[1754057866327,0.1376,3627.9,3627.2,0.4528]
[1754057866558,7.49527323,3628.1,3627.3,2.75679877]
[1754057866735,7.49527323,3628.1,3627.0,0.1376]
[1754057866736,0.1376,3627.6,3627.0,0.1376]
[1754057866956,4.739,3627.5,3627.2,2.75688548]
[1754057867124,4.739,3627.5,3627.0,4.83579636]
[1754057867326,4.739,3627.5,3627.3,2.7568189]
[1754057867544,0.1376,3627.6,3627.5,2.7567195]
[1754057867738,4.8746,3627.6,3627.0,0.1376]
[1754057868080,0.48886,3628.2,3627.5,2.7567195]
[1754057868369,0.1376,3628.0,3627.6,2.75658879]
[1754057868531,4.736,3627.9,3627.7,1.9411]
[1754057868737,4.736,3627.9,3627.5,0.1376]
[1754057868933,0.03445614,3627.8,3626.8,3.0]
[1754057869266,0.1376,3627.6,3627.1,2.8946214]
[1754057869474,0.1376,3627.6,3627.2,2.75691103]
[1754057869629,0.1376,3627.6,3627.4,2.75674593]
[1754057869966,0.1376,3627.6,3627.1,0.1376]
[1754057870465,4.734,3627.5,3627.1,0.1376]
[1754057870652,4.734,3627.4,3627.1,2.75701236]
[1754057870968,4.734,3627.4,3626.6,1.9411]
[1754057870969,0.1376,3627.4,3626.9,0.1376]
[1754057871164,4.734,3627.3,3627.1,2.75696621]
[1754057871370,0.1376,3627.4,3627.0,2.75707152]
[1754057871670,18.16280545,3627.1,3623.4,2.75979002]
[1754057871879,16.23186037,3627.0,3625.4,2.75826619]
[1754057872030,16.23186037,3627.0,3625.2,4.69953009]
[1754057872031,2.7575743,3626.4,3625.2,1.9411]
[1754057872234,4.733,3626.3,3625.2,1.9411]
[1754057872441,4.733,3626.2,3625.6,2.75811454]
[1754057872678,11.02979663,3627.0,3625.6,1.9411]
[1754057872974,4.732,3626.9,3625.7,3.0]
[1754057873172,4.732,3626.8,3626.5,2.75741086]
[1754057873532,4.732,3626.7,3625.8,0.4528]
[1754057873737,2.75746823,3626.6,3625.5,1.9411]
[1754057873932,2.75746823,3626.6,3625.8,2.75793761]
[1754057874273,0.662159,3626.7,3626.0,2.75779416]
[1754057874480,4.731,3626.5,3625.9,2.75788232]
[1754057874763,4.731,3626.4,3626.3,0.002]
[1754057875534,5.1656,3626.4,3626.3,0.002]
[1754057875735,4.731,3626.4,3626.3,0.002]
[1754057876186,0.662159,3626.7,3626.3,2.75963174]
[1754057876391,4.73,3626.6,3626.3,0.002]
[1754057876529,4.73,3626.5,3626.4,2.75748034]
[1754057877449,0.001,3627.5,3626.4,1.9411]
[1754057877633,2.7568715,3627.3,3626.3,2.75962625]
[1754057877833,0.98035715,3627.2,3626.3,0.002]
[1754057878032,0.98035715,3627.2,3626.6,2.75734967]
[1754057878272,4.728,3627.1,3626.6,2.75736012]
[1754057878437,5.1626,3627.1,3626.6,2.75733449]
[1754057878646,5.1626,3627.1,3626.4,2.7575557]
[1754057878849,5.1626,3627.1,3626.6,2.75734629]
[1754057879051,4.728,3627.1,3626.3,0.002]
[1754057879252,4.728,3627.1,3626.8,2.75719742]
[1754057879475,4.727,3627.0,3626.7,2.75730146]
[1754057879674,4.727,3627.0,3626.3,0.002]
[1754057879675,0.001,3627.5,3626.3,0.002]
[1754057879863,5.89673577,3627.4,3626.8,2.75719159]
[1754057880059,2.75688059,3627.3,3626.4,2.7575557]
[1754057880261,0.001,3627.5,3626.4,2.7575557]
[1754057880486,0.001,3627.5,3627.4,2.7567955]
[1754057880860,4.727,3627.5,3627.4,1.9411]
[1754057881075,4.727,3627.5,3623.5,1.3820748]
[1754057881076,5.1997,3627.5,3626.7,1.9411]
[1754057881382,4.727,3627.5,3626.7,1.9411]
[1754057881578,4.727,3627.5,3626.2,1.9411]
[1754057881579,0.03445994,3627.4,3626.2,1.9411]
[1754057881762,4.727,3627.5,3627.4,2.7567955]
[1754057881763,0.1386,3627.5,3627.4,2.7567955]
[1754057882093,5.1616,3627.5,3626.4,3.0]
[1754057882265,0.1376,3627.0,3626.9,2.75717553]
[1754057882461,4.8626,3627.0,3626.9,2.75717553]
[1754057882987,4.8626,3627.0,3626.8,2.75723172]
[1754057883189,4.8626,3627.0,3626.9,2.75717554]
[1754057883394,0.1376,3627.0,3626.9,2.75717554]
[1754057883892,4.724,3627.0,3626.9,5.28867554]
[1754057884275,4.724,3627.0,3626.9,2.89477554]
[1754057884651,0.1376,3627.4,3627.3,2.7568715]
[1754057884857,0.001,3627.5,3627.4,2.7567955]
[1754057885190,0.001,3627.5,3627.4,4.6978955]
[1754057885390,4.724,3627.5,3627.4,2.7567955]
[1754057885869,4.724,3627.5,3627.4,4.6607955]
[1754057886192,4.724,3627.5,3627.4,2.7567955]
[1754057886568,0.001,3627.5,3627.4,2.7567955]
[1754057886771,4.723,3627.5,3627.4,4.6607955]
[1754057886974,0.001,3627.5,3627.4,5.1190955]
[1754057887160,0.001,3627.5,3627.4,5.2566955]
[1754057887699,1e-08,3627.5,3627.4,5.2566955]
[1754057887865,1e-08,3627.5,3627.4,8.1190955]
[1754057890995,1e-08,3627.5,3627.4,12.8380955]
[1754057892965,1e-08,3627.5,3627.4,13.06690206]
[1754057893517,1e-08,3627.5,3627.4,8.1190955]
[1754057893792,1e-08,3627.5,3627.4,5.7567955]
[1754057895102,1e-08,3627.5,3627.4,7.6607955]
[1754057895574,1e-08,3627.5,3627.4,5.7567955]
[1754057896494,1e-08,3627.5,3627.4,7.6607955]
[1754057896809,1e-08,3627.5,3627.4,12.8320955]
[1754057897100,1e-08,3627.5,3627.4,12.3737955]
[1754057897524,1e-08,3627.5,3627.4,12.8320955]
[1754057897700,1e-08,3627.5,3627.4,10.4697955]
[1754057898073,1e-08,3627.5,3627.4,8.2566955]
[1754057898269,1e-08,3627.5,3627.4,12.9676955]
[1754057899301,1e-08,3627.5,3627.4,12.5093955]
[1754057899574,1e-08,3627.5,3627.4,10.6053955]
[1754057899775,1e-08,3627.5,3627.4,5.8943955]
[1754057900440,1e-08,3627.5,3627.4,7.7983955]
[1754057900594,1e-08,3627.5,3627.4,12.9656955]
[1754057902081,1e-08,3627.5,3627.4,12.5073955]
[1754057902878,1e-08,3627.5,3627.4,12.9656955]
[1754057905088,1e-08,3627.5,3627.4,5.7567955]
[1754057905489,1e-08,3627.5,3627.4,8.1190955]
[1754057905888,1e-08,3627.5,3627.4,12.8240955]
[1754057906521,1e-08,3628.2,3628.1,2.7562636]
[1754057906816,1e-08,3628.2,3628.1,10.48782623]
[1754057907029,1e-08,3628.2,3628.1,12.8225636]
[1754057907681,1e-08,3628.6,3628.5,2.75595976]
[1754057907884,1e-08,3628.6,3628.5,10.45895976]
[1754057908180,1e-08,3628.6,3628.5,12.82125976]
[1754057908815,1e-08,3628.6,3628.5,5.75595976]
[1754057909007,1e-08,3628.6,3628.5,10.45795976]
[1754057909192,1e-08,3628.6,3628.5,5.75595976]
[1754057909949,1e-08,3628.6,3628.5,2.75595976]
[1754057910493,1e-08,3628.6,3628.5,2.78351935]
[1754057911108,1e-08,3628.6,3628.5,2.75595976]
[1754057911435,1e-08,3628.6,3628.5,7.45595976]
[1754057911788,1e-08,3628.6,3628.5,7.45495976]
[1754057912388,1e-08,3628.6,3628.5,12.35895976]
[1754057912589,1e-08,3628.6,3628.5,12.81725976]
[1754057914037,1e-08,3628.6,3628.5,13.36725976]
[1754057914222,1e-08,3628.6,3628.5,14.01204736]
[1754057914419,1e-08,3628.6,3628.5,14.35344921]
[1754057915045,0.03125,3629.5,3629.4,5.75527635]
[1754057915338,0.03125,3629.5,3629.4,10.45127635]
[1754057915489,0.03125,3629.5,3629.4,12.37877635]
[1754057915841,0.001,3630.0,3629.9,2.75489682]
[1754057916169,0.001,3630.0,3629.9,10.45089682]
[1754057916170,1e-08,3630.0,3629.9,10.45089682]
[1754057916301,1e-08,3630.4,3630.3,2.75459328]
[1754057916489,1e-08,3630.4,3630.3,10.44959328]
[1754057916692,1e-08,3630.4,3630.3,12.96319328]
[1754057918616,0.5,3631.1,3630.4,3.0]
[1754057918796,0.5,3631.1,3631.0,5.75406224]
[1754057918996,0.5,3631.1,3631.0,10.58366224]
[1754057919404,0.004,3631.8,3631.7,2.7535314]
[1754057919630,0.004,3631.8,3631.7,7.47306671]
[1754057919815,0.004,3631.8,3631.7,7.4455314]
[1754057920034,0.004,3631.8,3631.7,16.5106314]
[1754057920216,0.004,3631.8,3631.7,19.5106314]
[1754057920407,0.004,3631.8,3631.7,19.9591314]
[1754057920608,0.17190608,3632.2,3631.8,5.75345558]
[1754057920808,0.17190608,3632.2,3631.8,8.47163672]
[1754057921244,0.17190608,3632.2,3632.1,5.75322816]
[1754057921410,0.17190608,3632.2,3632.1,10.44222816]
[1754057922222,0.17190608,3632.2,3632.1,2.89082816]
[1754057922922,0.17190608,3632.2,3632.1,10.57882816]
[1754057923313,0.17190608,3632.2,3632.1,7.57882816]
[1754057923534,2.59220608,3632.2,3632.1,0.1376]
[1754057923724,2.85142669,3632.2,3631.9,0.1376]
[1754057923929,2.4203,3632.1,3631.9,0.1376]
[1754057924135,2.4203,3632.1,3630.2,2.75466916]
[1754057924355,0.453,3632.1,3632.0,2.75330396]
[1754057924515,1e-08,3632.2,3632.1,5.75322816]
[1754057924721,1e-08,3632.2,3632.1,7.68072816]
[1754057925214,1e-08,3632.2,3632.1,5.95890465]
[1754057925843,1e-08,3632.2,3632.1,5.75322816]
[1754057926928,1e-08,3632.2,3632.1,12.36472816]
[1754057927531,1e-08,3632.2,3632.1,13.02389011]
[1754057927931,0.01,3632.9,3632.8,2.75269764]
[1754057929031,1e-08,3632.9,3632.8,10.46122461]
[1754057929237,1e-08,3632.9,3632.8,13.35969764]
[1754057931366,0.01,3633.9,3633.8,5.75194011]
[1754057931367,1e-08,3633.9,3633.8,5.75194011]
[1754057931565,1e-08,3633.9,3633.8,10.43094011]
[1754057931718,1e-08,3633.9,3633.8,12.80694011]
[1754057931922,0.86596264,3634.8,3634.7,5.7512587]
[1754057931923,0.27061332,3634.8,3634.7,5.7512587]
[1754057932118,0.01,3634.9,3634.8,2.751183]
[1754057932354,0.01,3634.9,3634.8,7.429183]
[1754057933321,0.01,3634.9,3634.8,10.429183]
[1754057933632,2.4303,3634.9,3633.6,2.376]
[1754057933824,2.4303,3634.9,3634.7,2.75122805]
[1754057934021,0.01,3634.9,3634.8,2.888783]
[1754057934255,1.9773,3634.9,3634.8,2.888783]
[1754057934455,2.4303,3634.9,3633.8,5.75194011]
[1754057934654,0.453,3634.8,3634.7,0.1376]
[1754057934878,3.44722655,3634.8,3634.2,4.675]
[1754057935074,2.4203,3634.7,3634.3,0.1376]
[1754057935452,2.4203,3634.6,3634.4,2.7514858]
[1754057935633,2.4203,3634.5,3634.4,2.7514858]
[1754057935838,2.4203,3634.5,3633.1,8.5415]
[1754057936133,0.69503,3634.4,3633.3,3.0]
[1754057936352,0.453,3634.4,3633.5,3.0]
[1754057936575,2.45469451,3634.3,3633.6,4.673]
[1754057936889,2.75176517,3634.1,3633.3,4.673]
[1754057937056,2.4203,3634.0,3632.5,0.21039426]
[1754057937256,0.24203,3633.9,3632.1,1.96503228]
[1754057937579,0.453,3633.8,3632.2,2.75314804]
[1754057937751,2.4203,3633.8,3633.6,2.75201586]
[1754057938088,2.7518456,3634.0,3633.2,2.75232238]
[1754057938263,2.78629262,3633.9,3633.0,2.75254594]
[1754057938441,2.4203,3633.8,3632.6,3.0]
[1754057938776,0.51721669,3633.7,3632.9,3.0]
[1754057938987,0.51721669,3633.7,3632.8,2.7526976]
[1754057939288,2.4203,3633.6,3633.0,2.75249386]
[1754057939591,0.453,3633.5,3632.5,4.671]
[1754057939878,1.9673,3633.4,3632.9,2.75260862]
[1754057940081,1.9673,3633.4,3632.5,4.671]
[1754057940250,0.453,3633.3,3632.5,7.42388039]
[1754057940451,1.9673,3633.2,3632.4,4.67]
[1754057940659,1.9673,3633.2,3632.1,2.76515636]
[1754057940660,0.453,3633.1,3632.3,4.67]
[1754057940841,0.453,3633.1,3632.5,2.75287469]
[1754057941037,1.9673,3633.0,3632.1,3.012]
[1754057941288,1.9673,3633.5,3632.2,1.9275]
[1754057941490,1.9673,3633.5,3632.1,0.012]
[1754057941491,0.453,3633.4,3632.1,0.012]
[1754057941643,0.453,3633.4,3632.2,2.75310455]
[1754057941644,2.75243054,3633.2,3632.2,2.75310455]
[1754057941982,2.75268872,3632.9,3632.1,0.012]
[1754057942278,2.75264443,3632.9,3632.1,0.012]
[1754057942576,2.4203,3632.8,3632.2,2.75312582]
[1754057942782,2.4203,3632.8,3632.1,0.012]
[1754057943477,4.668,3633.5,3632.1,2.76518929]
[1754057943691,2.4203,3633.2,3632.7,2.75271729]
[1754057943840,2.4203,3633.2,3633.0,2.75248001]
[1754057944046,2.4203,3633.2,3633.1,2.75247034]
[1754057944391,1.9673,3633.6,3633.3,2.75229316]
[1754057944686,1.9673,3633.6,3633.3,2.75230345]
[1754057944844,2.4203,3633.6,3633.1,2.75243331]
[1754057945046,0.453,3633.5,3633.2,2.75237316]
[1754057945262,1.9673,3633.6,3632.6,4.668]
[1754057945487,0.03440209,3633.5,3632.6,4.668]
[1754057945692,2.75237437,3633.3,3632.6,2.75277752]
[1754057945858,2.75264225,3632.9,3632.2,2.75310027]
[1754057946223,0.1376,3632.5,3632.4,2.75294782]
[1754057946498,0.1376,3632.5,3632.2,2.75315235]
[1754057946792,2.3833,3632.4,3632.1,0.012]
[1754057947093,2.3833,3632.4,3631.7,7.42252328]
[1754057947094,2.75345558,3631.8,3631.7,0.002]
[1754057947463,5.30877377,3631.8,3631.7,0.002]
[1754057947661,2.75374214,3631.5,3631.1,0.01]
[1754057947965,0.1376,3631.2,3631.1,0.01]
[1754057948160,2.89151055,3631.2,3631.1,0.01]
[1754057948391,5.83671549,3631.2,3631.1,0.01]
[1754057948561,5.80229161,3631.2,3631.1,0.01]
[1754057948761,3.04838106,3631.2,3631.1,0.01]
[1754057949098,15.40572242,3632.0,3631.1,0.01]
[1754057949099,0.1376,3631.3,3631.1,0.01]
[1754057949597,0.1376,3631.3,3631.1,2.76396871]
[1754057949892,0.1376,3631.4,3631.2,2.75391055]
[1754057950098,1.9394,3632.3,3631.3,2.4396]
[1754057950400,0.4439,3632.6,3631.6,2.75360663]
[1754057950586,0.1376,3632.5,3632.1,2.75322495]
[1754057950769,0.1376,3632.5,3632.0,0.1376]
[1754057950964,0.1376,3632.5,3632.1,0.02753228]
[1754057951164,0.1376,3632.6,3632.2,2.75315235]
[1754057951370,0.1376,3632.6,3632.5,2.75292498]
[1754057951601,0.1376,3632.6,3632.0,0.1376]
[1754057951602,2.3833,3632.5,3632.0,0.1376]
[1754057951788,0.1376,3632.6,3632.0,0.1376]
[1754057951789,2.3833,3632.4,3632.0,0.1376]
[1754057952101,15.40572242,3632.7,3631.1,2.0009]
[1754057952102,2.3833,3632.3,3631.6,2.75360692]
[1754057952310,2.3833,3632.3,3631.1,2.0009]
[1754057952525,2.3833,3632.3,3631.1,3.01]
[1754057952671,15.40572242,3632.0,3631.1,0.01]
[1754057952873,0.03441724,3631.9,3631.1,0.01]
[1754057953227,15.40572242,3632.0,3631.1,0.01]
[1754057953228,7.0463,3631.8,3631.1,0.01]
[1754057953396,2.75376626,3631.4,3631.1,0.01]
[1754057953598,2.75362336,3631.6,3631.1,0.01]
[1754057953800,2.3833,3631.8,3631.1,0.01]
[1754057953976,0.4439,3631.6,3631.1,2.76391229]
[1754057954301,4.662,3631.6,3631.1,0.01]
[1754057954481,4.662,3631.6,3631.2,2.75384398]
[1754057954669,4.662,3631.6,3631.1,2.76392877]
[1754057954874,4.662,3631.6,3631.2,2.75391055]
[1754057955085,4.662,3631.6,3631.3,2.75376555]
[1754057955289,0.4662,3631.6,3631.1,0.01]
[1754057955491,4.661,3632.5,3631.2,2.4396]